fUST/lending_fUST_20250209
["ID","MTS","AMOUNT","RATE_DAILY","PERIOD"]
[352312887,1739038242565,-147979.42407859,0.00011369,5]
[352312888,1739038242575,-500.0,0.00011369,2]
[352312889,1739038242584,-500.0,0.00011369,2]
[352312890,1739038242594,-500.0,0.00011369,2]
[352312891,1739038242603,-583.99,0.00011369,2]
[352312892,1739038242612,-500.0,0.00011369,2]
[352312893,1739038242622,-318.02772529,0.00011369,2]
[352312894,1739038242631,-500.0,0.00011369,2]
[352312895,1739038242640,-500.0,0.00011369,2]
[352312896,1739038242649,-500.0,0.00011369,2]
[352312898,1739038242659,-500.0,0.00011369,2]
[352312899,1739038242668,-500.0,0.00011369,2]
[352312900,1739038242677,-500.0,0.00011369,2]
[352312901,1739038242687,-968.2,0.00011369,2]
[352312902,1739038242696,-500.0,0.00011369,2]
[352312903,1739038242705,-500.0,0.00011369,2]
[352312904,1739038242714,-1228.38,0.00011369,2]
[352312906,1739038242724,-500.0,0.00011369,2]
[352312908,1739038242733,-1216.26,0.00011369,2]
[352312910,1739038242743,-682.78,0.00011369,2]
[352312912,1739038242756,-501.81,0.00011369,2]
[352312914,1739038242765,-500.0,0.00011369,2]
[352312915,1739038242774,-500.0,0.00011369,2]
[352312916,1739038242784,-500.0,0.00011369,2]
[352312917,1739038242794,-389.54491019,0.00011369,2]
[352312918,1739038242803,-500.0,0.00011369,2]
[352312919,1739038242817,-874.53,0.00011369,2]
[352312920,1739038242830,-500.0,0.00011369,2]
[352312921,1739038242840,-1180.9,0.00011369,2]
[352312922,1739038242850,-500.0,0.00011369,2]
[352312923,1739038242859,-500.0,0.00011369,2]
[352312924,1739038242869,-500.0,0.00011369,2]
[352312925,1739038242878,-500.0,0.00011369,2]
[352312926,1739038242887,-521.62,0.00011369,2]
[352312927,1739038242896,-830.9,0.00011369,2]
[352312928,1739038242906,-500.0,0.00011369,2]
[352312929,1739038242915,-500.0,0.00011369,2]
[352312930,1739038242925,-610.55,0.00011369,2]
[352312931,1739038242934,-500.0,0.00011369,2]
[352312932,1739038242944,-971.17,0.00011369,2]
[352312933,1739038242953,-500.0,0.00011369,2]
[352312935,1739038242963,-500.0,0.00011369,2]
[352312937,1739038242971,-500.0,0.00011369,2]
[352312939,1739038242981,-612.24,0.00011369,2]
[352312941,1739038242991,-532.29,0.00011369,2]
[352312943,1739038243000,-294.72392032,0.00011369,2]
[352312944,1739038243010,-500.0,0.00011369,2]
[352312945,1739038243019,-577.0,0.00011369,2]
[352312946,1739038243029,-549.88,0.00011369,2]
[352312947,1739038243038,-500.0,0.00011369,2]
[352312948,1739038243047,-500.0,0.00011369,2]
[352312949,1739038243058,-500.0,0.00011369,2]
[352312950,1739038243067,-500.0,0.00011369,2]
[352312951,1739038243076,-1064.8,0.00011369,2]
[352312952,1739038243085,-500.0,0.00011369,2]
[352312953,1739038243095,-500.0,0.00011369,2]
[352312954,1739038243104,-764.49,0.00011369,2]
[352312955,1739038243114,-3291.56,0.00011369,2]
[352312956,1739038243124,-500.0,0.00011369,2]
[352312957,1739038243133,-538.98,0.00011369,2]
[352312958,1739038243143,-500.0,0.00011369,2]
[352312959,1739038243152,-925.2,0.00011369,2]
[352312960,1739038243162,-520.08,0.00011369,2]
[352312961,1739038243172,-4535.82,0.00011369,2]
[352312962,1739038243181,-500.0,0.00011369,2]
[352312963,1739038243190,-1528.69,0.00011369,2]
[352312964,1739038243200,-500.0,0.00011369,2]
[352312965,1739038243209,-500.0,0.00011369,2]
[352312966,1739038243219,-1033.83,0.00011369,2]
[352312967,1739038243228,-500.0,0.00011369,2]
[352312968,1739038243238,-4296.82,0.00011369,2]
[352312969,1739038243247,-500.0,0.00011369,2]
[352312970,1739038243257,-202.90779649,0.00011369,2]
[352312971,1739038243266,-35462.71,0.00011369,2]
[352312972,1739038243275,-679.52,0.00011369,2]
[352312973,1739038243285,-1103.68,0.00011369,2]
[352312974,1739038243294,-1039.94,0.00011369,2]
[352312975,1739038243307,-500.0,0.00011369,2]
[352312976,1739038243316,-500.0,0.00011369,2]
[352312977,1739038243327,-3232.86,0.00011369,2]
[352312978,1739038243336,-14824.55,0.00011369,2]
[352312979,1739038243345,-1887.7,0.00011369,2]
[352312981,1739038243354,-500.0,0.00011369,2]
[352312983,1739038243364,-500.0,0.00011369,2]
[352312984,1739038243373,-1340.2,0.00011369,2]
[352312985,1739038243383,-500.0,0.00011369,2]
[352312986,1739038243392,-1226.39,0.00011369,2]
[352312987,1739038243401,-500.0,0.00011369,2]
[352312988,1739038243411,-500.0,0.00011369,2]
[352312989,1739038243420,-1555.89,0.00011369,2]
[352312990,1739038243429,-500.0,0.00011369,2]
[352312991,1739038243439,-1487.36,0.00011369,2]
[352312992,1739038243448,-500.0,0.00011369,2]
[352312993,1739038243457,-713.98,0.00011369,2]
[352312994,1739038243466,-500.0,0.00011369,2]
[352312995,1739038243475,-726.66,0.00011369,2]
[352312996,1739038243492,-500.0,0.00011369,2]
[352312997,1739038243501,-397.23,0.00011369,2]
[352312998,1739038243510,-1414.83,0.00011369,2]
[352312999,1739038243519,-211.69,0.00011369,2]
[352313000,1739038243527,-500.0,0.00011369,2]
[352313001,1739038243536,-500.0,0.00011369,2]
[352313002,1739038243546,-500.0,0.00011369,2]
[352313003,1739038243556,-1886.18,0.00011369,2]
[352313004,1739038243566,-500.0,0.00011369,2]
[352313005,1739038243575,-500.0,0.00011369,2]
[352313006,1739038243584,-500.0,0.00011369,2]
[352313007,1739038243593,-500.0,0.00011369,2]
[352313008,1739038243740,-2937.24,0.00011369,2]
[352313009,1739038243754,-500.0,0.00011369,2]
[352313010,1739038243764,-500.0,0.00011369,2]
[352313011,1739038243773,-500.0,0.00011369,2]
[352313012,1739038243782,-500.0,0.00011369,2]
[352313013,1739038243792,-500.0,0.00011369,2]
[352313014,1739038243804,-3067.78,0.00011369,2]
[352313015,1739038243814,-3131.93,0.00011369,2]
[352313016,1739038243825,-1541.91,0.00011369,2]
[352313017,1739038243837,-766.22,0.00011369,2]
[352313018,1739038243847,-500.0,0.00011369,2]
[352313019,1739038243857,-7583.89,0.00011369,2]
[352313020,1739038243866,-1377.67,0.00011369,2]
[352313021,1739038243875,-1203.13,0.00011369,2]
[352313022,1739038243886,-768.31,0.00011369,2]
[352313023,1739038243895,-603.7,0.00011369,2]
[352313024,1739038243906,-1482.53,0.00011369,2]
[352313025,1739038243915,-725.64,0.00011369,2]
[352313026,1739038243925,-500.0,0.00011369,2]
[352313027,1739038243934,-500.0,0.00011369,2]
[352313028,1739038243944,-576.52,0.00011369,2]
[352313029,1739038243953,-772.75,0.00011369,2]
[352313030,1739038243964,-500.0,0.00011369,2]
[352313031,1739038243973,-675.74,0.00011369,2]
[352313032,1739038243982,-230.38417379,0.00011369,2]
[352313033,1739038243991,-500.0,0.00011369,2]
[352313034,1739038244001,-500.0,0.00011369,2]
[352313035,1739038244010,-1259.31,0.00011369,2]
[352313036,1739038244020,-3140.18,0.00011369,2]
[352313037,1739038244030,-837.98,0.00011369,2]
[352313038,1739038244039,-915.42,0.00011369,2]
[352313039,1739038244049,-14759.1,0.00011369,2]
[352313040,1739038244059,-277.358288,0.00011369,2]
[352313041,1739038244068,-559.07,0.00011369,2]
[352313042,1739038244078,-500.0,0.00011369,2]
[352313043,1739038244087,-277.358288,0.00011369,2]
[352313044,1739038244096,-2431.94,0.00011369,2]
[352313045,1739038244106,-500.0,0.00011369,2]
[352313046,1739038244115,-296.24240078,0.00011377,2]
[352313047,1739038244125,-151.0,0.000114,2]
[352313048,1739038244135,-153.0,0.00011425,2]
[352313049,1739038244145,-153.0,0.00011425,2]
[352313050,1739038244154,-309.1472928,0.00011452,2]
[352313051,1739038244164,-215.7975175,0.00011452,2]
[352313052,1739038244174,-215.7975175,0.00011452,2]
[352313053,1739038244183,-215.7975175,0.00011452,2]
[352313054,1739038244193,-215.7975175,0.00011452,2]
[352313055,1739038244203,-215.7975175,0.00011452,2]
[352313056,1739038244213,-491.5712715,0.00011452,2]
[352313057,1739038244223,-151.0,0.000115,2]
[352313058,1739038244232,-153.0,0.000115,2]
[352313059,1739038244242,-151.0,0.000115,2]
[352313060,1739038244252,-151.0,0.000115,2]
[352313061,1739038244261,-500.0,0.00011506,2]
[352313062,1739038244271,-500.0,0.00011506,2]
[352313063,1739038244282,-500.0,0.00011506,2]
[352313064,1739038244292,-583.99,0.00011506,2]
[352313065,1739038244302,-500.0,0.00011506,2]
[352313066,1739038244313,-500.0,0.00011506,2]
[352313067,1739038244323,-500.0,0.00011506,2]
[352313068,1739038244333,-500.0,0.00011506,2]
[352313069,1739038244343,-500.0,0.00011506,2]
[352313070,1739038244353,-408.90997083,0.00011506,2]
[352313071,1739038244362,-500.0,0.00011506,2]
[352313072,1739038244372,-968.2,0.00011506,2]
[352313073,1739038244382,-648.40905229,0.00011506,2]
[352313074,1739038244391,-500.0,0.00011506,2]
[352313075,1739038244400,-1228.38,0.00011506,2]
[352313076,1739038244410,-500.0,0.00011506,2]
[352313077,1739038244419,-1216.26,0.00011506,2]
[352313078,1739038244429,-682.78,0.00011506,2]
[352313079,1739038244438,-501.81,0.00011506,2]
[352313080,1739038244447,-500.0,0.00011506,2]
[352313081,1739038244457,-500.0,0.00011506,2]
[352313082,1739038244466,-874.53,0.00011506,2]
[352313083,1739038244475,-500.0,0.00011506,2]
[352313084,1739038244485,-1180.9,0.00011506,2]
[352313085,1739038244494,-500.0,0.00011506,2]
[352313086,1739038244504,-500.0,0.00011506,2]
[352313087,1739038244514,-332.64203211,0.00011506,2]
[352313088,1739038244523,-500.0,0.00011506,2]
[352313089,1739038244532,-521.62,0.00011506,2]
[352313090,1739038244542,-830.9,0.00011506,2]
[352313091,1739038244551,-500.0,0.00011506,2]
[352313092,1739038244562,-610.55,0.00011506,2]
[352313093,1739038244571,-500.0,0.00011506,2]
[352313094,1739038244581,-971.17,0.00011506,2]
[352313095,1739038244590,-500.0,0.00011506,2]
[352313096,1739038244600,-500.0,0.00011506,2]
[352313097,1739038244609,-612.24,0.00011506,2]
[352313098,1739038244619,-532.29,0.00011506,2]
[352313099,1739038244628,-324.12945376,0.00011506,2]
[352313100,1739038244638,-577.0,0.00011506,2]
[352313101,1739038244647,-549.88,0.00011506,2]
[352313102,1739038244657,-500.0,0.00011506,2]
[352313103,1739038244666,-1064.8,0.00011506,2]
[352313104,1739038244676,-500.0,0.00011506,2]
[352313105,1739038244686,-500.0,0.00011506,2]
[352313106,1739038244695,-764.49,0.00011506,2]
[352313107,1739038244704,-3291.56,0.00011506,2]
[352313108,1739038244714,-500.0,0.00011506,2]
[352313109,1739038244723,-538.98,0.00011506,2]
[352313110,1739038244733,-500.0,0.00011506,2]
[352313111,1739038244743,-925.2,0.00011506,2]
[352313112,1739038244755,-520.08,0.00011506,2]
[352313113,1739038244765,-4535.82,0.00011506,2]
[352313114,1739038244775,-500.0,0.00011506,2]
[352313115,1739038244784,-1528.69,0.00011506,2]
[352313116,1739038244795,-1033.83,0.00011506,2]
[352313117,1739038244804,-500.0,0.00011506,2]
[352313118,1739038244815,-4296.82,0.00011506,2]
[352313119,1739038244826,-35462.71,0.00011506,2]
[352313120,1739038244835,-679.52,0.00011506,2]
[352313121,1739038244845,-1103.68,0.00011506,2]
[352313122,1739038244854,-1039.94,0.00011506,2]
[352313123,1739038244863,-500.0,0.00011506,2]
[352313124,1739038244872,-3232.86,0.00011506,2]
[352313125,1739038244882,-14824.55,0.00011506,2]
[352313126,1739038244891,-1887.7,0.00011506,2]
[352313127,1739038244900,-500.0,0.00011506,2]
[352313128,1739038244910,-1340.2,0.00011506,2]
[352313129,1739038244919,-500.0,0.00011506,2]
[352313130,1739038244929,-1226.39,0.00011506,2]
[352313131,1739038244939,-613.9265482,0.00011506,2]
[352313132,1739038244948,-500.0,0.00011506,2]
[352313133,1739038244956,-1555.89,0.00011506,2]
[352313134,1739038244966,-500.0,0.00011506,2]
[352313135,1739038244975,-1487.36,0.00011506,2]
[352313136,1739038244986,-500.0,0.00011506,2]
[352313137,1739038244996,-713.98,0.00011506,2]
[352313138,1739038245006,-500.0,0.00011506,2]
[352313139,1739038245016,-726.66,0.00011506,2]
[352313140,1739038245025,-1414.83,0.00011506,2]
[352313141,1739038245035,-500.0,0.00011506,2]
[352313142,1739038245043,-500.0,0.00011506,2]
[352313143,1739038245053,-500.0,0.00011506,2]
[352313144,1739038245063,-1886.18,0.00011506,2]
[352313145,1739038245072,-500.0,0.00011506,2]
[352313146,1739038245081,-500.0,0.00011506,2]
[352313147,1739038245091,-500.0,0.00011506,2]
[352313148,1739038245100,-500.0,0.00011506,2]
[352313149,1739038245109,-2937.24,0.00011506,2]
[352313150,1739038245119,-500.0,0.00011506,2]
[352313151,1739038245128,-500.0,0.00011506,2]
[352313152,1739038245138,-500.0,0.00011506,2]
[352313153,1739038245147,-500.0,0.00011506,2]
[352313154,1739038245156,-500.0,0.00011506,2]
[352313155,1739038245166,-3067.78,0.00011506,2]
[352313156,1739038245176,-3131.93,0.00011506,2]
[352313157,1739038245185,-1541.91,0.00011506,2]
[352313158,1739038245195,-766.22,0.00011506,2]
[352313159,1739038245204,-500.0,0.00011506,2]
[352313160,1739038245214,-7583.89,0.00011506,2]
[352313161,1739038245223,-1377.67,0.00011506,2]
[352313162,1739038245233,-1203.13,0.00011506,2]
[352313163,1739038245242,-768.31,0.00011506,2]
[352313164,1739038245251,-603.7,0.00011506,2]
[352313165,1739038245261,-1482.53,0.00011506,2]
[352313166,1739038245270,-725.64,0.00011506,2]
[352313167,1739038245279,-500.0,0.00011506,2]
[352313168,1739038245289,-576.52,0.00011506,2]
[352313169,1739038245298,-772.75,0.00011506,2]
[352313170,1739038245307,-500.0,0.00011506,2]
[352313171,1739038245318,-675.74,0.00011506,2]
[352313172,1739038245327,-500.0,0.00011506,2]
[352313173,1739038245336,-500.0,0.00011506,2]
[352313174,1739038245345,-3140.18,0.00011506,2]
[352313175,1739038245355,-1259.31,0.00011506,2]
[352313176,1739038245364,-837.98,0.00011506,2]
[352313177,1739038245374,-915.42,0.00011506,2]
[352313178,1739038245383,-14759.1,0.00011506,2]
[352313179,1739038245392,-277.358288,0.00011506,2]
[352313180,1739038245402,-559.07,0.00011506,2]
[352313181,1739038245411,-500.0,0.00011506,2]
[352313182,1739038245419,-277.358288,0.00011506,2]
[352313183,1739038245429,-2431.94,0.00011506,2]
[352313184,1739038245438,-500.0,0.00011506,2]
[352313185,1739038245448,-153.0,0.00011507,2]
[352313186,1739038245458,-153.4425861,0.00011507,2]
[352313187,1739038245467,-153.0,0.00011507,2]
[352313188,1739038245477,-153.0,0.00011507,2]
[352313189,1739038245486,-153.0,0.00011507,2]
[352313190,1739038245496,-153.0,0.00011507,2]
[352313191,1739038245506,-1500.0,0.00011521,2]
[352313192,1739038245515,-500.0,0.00011521,2]
[352313193,1739038245525,-1000.0,0.00011521,2]
[352313194,1739038245534,-500.0,0.0001153,2]
[352313195,1739038245543,-153.0,0.00011562,2]
[352313196,1739038245552,-500.0,0.00011596,2]
[352313197,1739038245562,-305.74029623,0.00011596,2]
[352313198,1739038245571,-151.0,0.000116,2]
[352313199,1739038245580,-151.0,0.000116,2]
[352313200,1739038245590,-500.0,0.00011617,2]
[352313201,1739038245599,-13265.39216455,0.00011639,2]
[352313202,1739038245608,-500.0,0.00011643,2]
[352313203,1739038245618,-267.81084953,0.00011643,2]
[352313204,1739038245627,-500.0,0.00011643,2]
[352313205,1739038245636,-583.99,0.00011643,2]
[352313206,1739038245646,-500.0,0.00011643,2]
[352313207,1739038245655,-154.39,0.00011643,2]
[352313208,1739038245664,-500.0,0.00011643,2]
[352313209,1739038245673,-500.0,0.00011643,2]
[352313210,1739038245683,-500.0,0.00011643,2]
[352313211,1739038245692,-500.0,0.00011643,2]
[352313212,1739038245701,-968.2,0.00011643,2]
[352313213,1739038245710,-500.0,0.00011643,2]
[352313214,1739038245720,-1228.38,0.00011643,2]
[352313215,1739038245729,-500.0,0.00011643,2]
[352313216,1739038245738,-1216.26,0.00011643,2]
[352313218,1739038245750,-682.78,0.00011643,2]
[352313220,1739038245761,-501.81,0.00011643,2]
[352313222,1739038245771,-151.0,0.00011643,2]
[352313224,1739038245780,-500.0,0.00011643,2]
[352313226,1739038245790,-500.0,0.00011643,2]
[352313227,1739038245799,-874.53,0.00011643,2]
[352313228,1739038245808,-500.0,0.00011643,2]
[352313229,1739038245818,-1180.9,0.00011643,2]
[352313230,1739038245828,-500.0,0.00011643,2]
[352313231,1739038245837,-500.0,0.00011643,2]
[352313232,1739038245846,-500.0,0.00011643,2]
[352313233,1739038245855,-521.62,0.00011643,2]
[352313235,1739038245865,-830.9,0.00011643,2]
[352313236,1739038245874,-500.0,0.00011643,2]
[352313237,1739038245883,-610.55,0.00011643,2]
[352313238,1739038245893,-500.0,0.00011643,2]
[352313239,1739038245902,-971.17,0.00011643,2]
[352313240,1739038245912,-500.0,0.00011643,2]
[352313241,1739038245921,-500.0,0.00011643,2]
[352313242,1739038245931,-612.24,0.00011643,2]
[352313243,1739038245941,-532.29,0.00011643,2]
[352313244,1739038245950,-577.0,0.00011643,2]
[352313245,1739038245960,-549.88,0.00011643,2]
[352313247,1739038245969,-500.0,0.00011643,2]
[352313249,1739038245978,-1064.8,0.00011643,2]
[352313250,1739038245987,-500.0,0.00011643,2]
[352313251,1739038245997,-500.0,0.00011643,2]
[352313252,1739038246006,-764.49,0.00011643,2]
[352313253,1739038246015,-3291.56,0.00011643,2]
[352313254,1739038246025,-500.0,0.00011643,2]
[352313255,1739038246036,-151.0,0.00011643,2]
[352313256,1739038246046,-538.98,0.00011643,2]
[352313257,1739038246056,-500.0,0.00011643,2]
[352313258,1739038246065,-151.0,0.00011643,2]
[352313259,1739038246075,-925.2,0.00011643,2]
[352313260,1739038246086,-151.0,0.00011643,2]
[352313261,1739038246096,-520.08,0.00011643,2]
[352313262,1739038246105,-4535.82,0.00011643,2]
[352313263,1739038246115,-500.0,0.00011643,2]
[352313264,1739038246125,-1528.69,0.00011643,2]
[352313265,1739038246134,-1033.83,0.00011643,2]
[352313266,1739038246144,-500.0,0.00011643,2]
[352313267,1739038246154,-4296.82,0.00011643,2]
[352313268,1739038246164,-1305.378349,0.00011643,2]
[352313269,1739038246174,-35462.71,0.00011643,2]
[352313270,1739038246184,-679.52,0.00011643,2]
[352313271,1739038246193,-1305.378349,0.00011643,2]
[352313272,1739038246202,-1103.68,0.00011643,2]
[352313273,1739038246211,-1039.94,0.00011643,2]
[352313274,1739038246222,-500.0,0.00011643,2]
[352313275,1739038246232,-3232.86,0.00011643,2]
[352313276,1739038246241,-14824.55,0.00011643,2]
[352313277,1739038246251,-1887.7,0.00011643,2]
[352313278,1739038246261,-500.0,0.00011643,2]
[352313279,1739038246270,-1340.2,0.00011643,2]
[352313280,1739038246280,-500.0,0.00011643,2]
[352313281,1739038246290,-1226.39,0.00011643,2]
[352313282,1739038246300,-500.0,0.00011643,2]
[352313283,1739038246310,-1555.89,0.00011643,2]
[352313284,1739038246437,-500.0,0.00011643,2]
[352313285,1739038246446,-151.0,0.00011643,2]
[352313286,1739038246456,-1487.36,0.00011643,2]
[352313287,1739038246465,-500.0,0.00011643,2]
[352313288,1739038246474,-713.98,0.00011643,2]
[352313289,1739038246483,-500.0,0.00011643,2]
[352313290,1739038246493,-726.66,0.00011643,2]
[352313291,1739038246502,-1414.83,0.00011643,2]
[352313292,1739038246512,-500.0,0.00011643,2]
[352313293,1739038246521,-500.0,0.00011643,2]
[352313294,1739038246531,-500.0,0.00011643,2]
[352313295,1739038246540,-1886.18,0.00011643,2]
[352313296,1739038246550,-500.0,0.00011643,2]
[352313297,1739038246560,-500.0,0.00011643,2]
[352313298,1739038246570,-305.915347,0.00011643,2]
[352313299,1739038246579,-500.0,0.00011643,2]
[352313300,1739038246589,-305.915347,0.00011643,2]
[352313301,1739038246599,-500.0,0.00011643,2]
[352313302,1739038246609,-2937.24,0.00011643,2]
[352313303,1739038246618,-500.0,0.00011643,2]
[352313304,1739038246627,-500.0,0.00011643,2]
[352313305,1739038246637,-500.0,0.00011643,2]
[352313306,1739038246646,-500.0,0.00011643,2]
[352313307,1739038246656,-500.0,0.00011643,2]
[352313308,1739038246667,-3067.78,0.00011643,2]
[352313309,1739038246676,-3131.93,0.00011643,2]
[352313310,1739038246686,-1541.91,0.00011643,2]
[352313311,1739038246696,-766.22,0.00011643,2]
[352313312,1739038246705,-500.0,0.00011643,2]
[352313313,1739038246715,-7583.89,0.00011643,2]
[352313314,1739038246724,-1377.67,0.00011643,2]
[352313315,1739038246734,-1203.13,0.00011643,2]
[352313316,1739038246744,-768.31,0.00011643,2]
[352313317,1739038246756,-603.7,0.00011643,2]
[352313318,1739038246766,-1482.53,0.00011643,2]
[352313319,1739038246775,-725.64,0.00011643,2]
[352313320,1739038246785,-500.0,0.00011643,2]
[352313321,1739038246795,-576.52,0.00011643,2]
[352313322,1739038246804,-772.75,0.00011643,2]
[352313323,1739038246815,-500.0,0.00011643,2]
[352313324,1739038246826,-675.74,0.00011643,2]
[352313325,1739038246835,-500.0,0.00011643,2]
[352313326,1739038246845,-1259.31,0.00011643,2]
[352313327,1739038246855,-3140.18,0.00011643,2]
[352313328,1739038246865,-837.98,0.00011643,2]
[352313329,1739038246874,-915.42,0.00011643,2]
[352313330,1739038246883,-14759.1,0.00011643,2]
[352313331,1739038246893,-277.358288,0.00011643,2]
[352313332,1739038246902,-559.07,0.00011643,2]
[352313333,1739038246911,-500.0,0.00011643,2]
[352313334,1739038246921,-277.358288,0.00011643,2]
[352313335,1739038246930,-2431.94,0.00011643,2]
[352313336,1739038246940,-500.0,0.00011643,2]
[352313337,1739038246949,-234.08163751,0.00011653,2]
[352313338,1739038246959,-277.358288,0.0001168,2]
[352313339,1739038246968,-277.358288,0.0001168,2]
[352313340,1739038246977,-151.0,0.000117,2]
[352313341,1739038246987,-151.0,0.000117,2]
[352313342,1739038246996,-600.0,0.00011703,2]
[352313343,1739038247007,-597.483,0.00011738,2]
[352313344,1739038247017,-1091.327517,0.00011779,2]
[352313345,1739038247028,-1091.327517,0.00011779,2]
[352313346,1739038247037,-151.0,0.00011779,2]
[352313347,1739038247047,-151.0,0.00011779,2]
[352313348,1739038247056,-288.994636,0.00011779,2]
[352313349,1739038247067,-267.077224,0.00011779,2]
[352313350,1739038247076,-267.077224,0.00011779,2]
[352313351,1739038247086,-500.0,0.0001178,2]
[352313352,1739038247097,-583.99,0.0001178,2]
[352313353,1739038247107,-500.0,0.0001178,2]
[352313354,1739038247117,-1705.4571461,0.0001178,2]
[352313355,1739038247127,-151.0,0.0001178,2]
[352313356,1739038247136,-151.0,0.0001178,2]
[352313357,1739038247146,-500.0,0.0001178,2]
[352313358,1739038247155,-500.0,0.0001178,2]
[352313359,1739038247165,-151.0,0.0001178,2]
[352313360,1739038247175,-151.0,0.0001178,2]
[352313361,1739038247185,-386.26406905,0.0001178,2]
[352313362,1739038247194,-160.220664,0.0001178,2]
[352313363,1739038247205,-968.2,0.0001178,2]
[352313364,1739038247215,-508.659585,0.0001178,2]
[352313365,1739038247225,-500.0,0.0001178,2]
[352313366,1739038247235,-508.659585,0.0001178,2]
[352313367,1739038247244,-1228.38,0.0001178,2]
[352313368,1739038247254,-500.0,0.0001178,2]
[352313369,1739038247263,-1216.26,0.0001178,2]
[352313370,1739038247273,-682.78,0.0001178,2]
[352313371,1739038247282,-713.412114,0.0001178,2]
[352313372,1739038247291,-713.412114,0.0001178,2]
[352313373,1739038247300,-501.81,0.0001178,2]
[352313374,1739038247310,-151.0,0.0001178,2]
[352313375,1739038247319,-500.0,0.0001178,2]
[352313376,1739038247329,-500.0,0.0001178,2]
[352313377,1739038247339,-874.53,0.0001178,2]
[352313378,1739038247349,-318.976733,0.0001178,2]
[352313379,1739038247358,-318.976733,0.0001178,2]
[352313380,1739038247367,-500.0,0.0001178,2]
[352313381,1739038247377,-1180.9,0.0001178,2]
[352313382,1739038247387,-151.0,0.0001178,2]
[352313383,1739038247397,-163.30160316,0.0001178,2]
[352313384,1739038247407,-500.0,0.0001178,2]
[352313385,1739038247417,-521.62,0.0001178,2]
[352313386,1739038247426,-830.9,0.0001178,2]
[352313387,1739038247436,-447.28,0.0001178,2]
[352313388,1739038247447,-610.55,0.0001178,2]
[352313389,1739038247458,-500.0,0.0001178,2]
[352313390,1739038247469,-971.17,0.0001178,2]
[352313391,1739038247479,-500.0,0.0001178,2]
[352313392,1739038247489,-500.0,0.0001178,2]
[352313393,1739038247499,-612.24,0.0001178,2]
[352313394,1739038247508,-532.29,0.0001178,2]
[352313395,1739038247518,-577.0,0.0001178,2]
[352313396,1739038247528,-549.88,0.0001178,2]
[352313397,1739038247538,-500.0,0.0001178,2]
[352313398,1739038247547,-1064.8,0.0001178,2]
[352313399,1739038247557,-500.0,0.0001178,2]
[352313400,1739038247567,-764.49,0.0001178,2]
[352313401,1739038247577,-3291.56,0.0001178,2]
[352313402,1739038247587,-244.82,0.0001178,2]
[352313403,1739038247597,-538.98,0.0001178,2]
[352313404,1739038247606,-500.0,0.0001178,2]
[352313405,1739038247616,-151.0,0.0001178,2]
[352313406,1739038247625,-925.2,0.0001178,2]
[352313407,1739038247635,-151.0,0.0001178,2]